bitfinex-derivatives/quotes_ETHF0:USTF0_20250116
["timestamp","ask_amount","ask_price","bid_price","bid_amount"]
[1737027160598,0.59891,3340.0,3339.9,0.5989]
[1737027160795,0.59894,3339.8,3339.7,0.59892]
[1737027161000,0.59895,3339.7,3339.6,5.05676]
[1737027161494,0.59895,3339.8,3339.7,0.59894]
[1737027164300,0.59889,3340.1,3340.0,0.59887]
[1737027164803,0.59893,3339.9,3339.8,0.59891]
[1737027165003,0.59895,3339.8,3339.7,0.59893]
[1737027165908,0.59895,3339.7,3339.6,3.2078]
[1737027166407,0.59895,3339.7,3339.6,3.80677]
[1737027166801,0.59895,3339.7,3339.6,3.2078]
[1737027167308,0.59895,3339.7,3339.6,3.80677]
[1737027168013,1.49719,3340.2,3339.6,3.2078]
[1737027168196,0.59888,3340.2,3340.1,0.59886]
[1737027168396,3.2078,3340.5,3339.8,2.38498436]
[1737027168611,0.59891,3340.0,3339.9,0.59889]
[1737027169707,0.59881,3340.6,3340.5,0.59878]
[1737027170503,11.4743297,3341.3,3340.3,3.63998436]
[1737027170706,0.59877,3340.8,3340.7,0.59874]
[1737027171398,1.49672,3341.2,3340.6,3.2078]
[1737027171602,3.2078,3341.4,3341.0,0.5987]
[1737027171603,0.59872,3341.1,3341.0,0.5987]
[1737027172304,3.2078,3341.4,3340.7,1.49689]
[1737027172497,0.59873,3341.1,3341.0,0.5987]
[1737027172701,0.59875,3341.0,3340.9,0.59872]
[1737027173506,3.2078,3341.4,3340.6,5.59278436]
[1737027173811,0.59877,3340.8,3340.7,0.59875]
[1737027174208,1.49668,3341.3,3340.6,5.59278436]
[1737027174398,0.59875,3340.9,3340.8,0.59873]
[1737027174809,1.49668,3341.3,3340.6,5.59278436]
[1737027175008,0.59872,3341.0,3340.9,0.59871]
[1737027175309,0.59875,3341.0,3340.9,0.59873]
[1737027175510,3.80646,3341.4,3341.3,0.59866]
[1737027175705,3.2078,3341.4,3341.3,0.59866]
[1737027175906,3.80644,3341.4,3341.3,0.59866]
[1737027176808,3.80644,3341.4,3341.3,0.59864]
[1737027176809,0.59866,3341.4,3341.3,0.59864]
[1737027177002,0.59866,3341.3,3341.2,0.59868]
[1737027177202,0.59868,3341.2,3341.1,1.255]
[1737027177606,1.49657,3341.5,3341.0,3.2078]
[1737027177809,0.5987,3341.1,3341.0,3.2078]
[1737027178010,0.5987,3341.1,3341.0,3.80651]
[1737027178205,0.5987,3341.1,3341.0,3.2078]
[1737027178512,3.2078,3341.6,3341.0,3.2078]
[1737027178707,0.59869,3341.2,3341.1,0.59867]
[1737027178907,3.2078,3341.6,3341.0,3.2078]
[1737027179113,0.59866,3341.4,3341.3,0.59864]
[1737027179310,1.49642,3341.9,3341.0,3.2078]
[1737027179511,0.59861,3341.7,3341.6,0.59859]
[1737027180412,0.59863,3341.6,3341.5,0.59862]
[1737027180720,0.59863,3341.5,3341.4,3.80643]
[1737027181118,1.49637,3342.0,3341.4,3.2078]
[1737027181414,1.49637,3342.0,3341.6,0.59859]
[1737027181415,0.59861,3341.7,3341.6,0.59859]
[1737027182016,3.2078,3342.1,3341.4,3.2078]
[1737027182319,0.59863,3341.6,3341.5,0.59862]
[1737027183117,0.5986,3341.7,3341.6,0.59858]
[1737027184809,0.59857,3341.9,3341.8,0.59854]
[1737027185221,4.70395,3342.5,3341.5,1.49657]
[1737027185222,3.2078,3342.5,3341.7,1.255]
[1737027185424,0.5985,3342.3,3342.2,0.59848]
[1737027186025,0.59853,3342.1,3342.0,0.59852]
[1737027186325,0.59854,3342.1,3342.0,0.59853]
[1737027186625,0.59855,3342.0,3341.9,0.59854]
[1737027186831,0.59855,3341.9,3341.8,3.80635]
[1737027187031,0.59855,3341.9,3341.8,3.2078]
[1737027187330,0.59855,3341.9,3341.8,3.80637]
[1737027187531,0.59855,3341.9,3341.8,3.2078]
[1737027187832,0.59865,3341.5,3341.4,4.4618]
[1737027188732,0.59865,3341.5,3341.4,5.06044]
[1737027188933,1.4963,3342.2,3341.4,4.4618]
[1737027189134,0.5986,3341.7,3341.4,4.4618]
[1737027189332,0.59856,3342.0,3341.9,0.59855]
[1737027189633,0.59853,3342.1,3342.0,0.59854]
[1737027190222,0.5315,3342.4,3341.8,3.2078]
[1737027190621,0.59855,3341.9,3341.8,3.2078]
[1737027191234,1.49629,3342.2,3341.7,0.5062]
[1737027191434,0.5315,3341.8,3341.4,4.4618]
[1737027191728,0.59862,3341.5,3341.4,3.80644]
[1737027191927,0.59862,3341.5,3341.4,5.06044]
[1737027192129,0.59862,3341.6,3341.5,0.59861]
[1737027192733,0.59862,3341.5,3341.4,5.06042]
[1737027193034,1.0202,3341.7,3341.5,0.59861]
[1737027193035,0.59862,3341.6,3341.5,0.59861]
[1737027193637,0.59859,3341.8,3341.7,0.59856]
[1737027194239,1.49626,3342.2,3341.6,2.81620278]
[1737027194544,0.59854,3342.1,3342.0,0.59852]
[1737027196231,1.5589,3342.3,3341.9,3.2078]
[1737027196440,1.12849,3342.3,3342.2,0.5985]
[1737027198040,0.53,3342.3,3342.2,2.98006966]
[1737027199348,1.0434,3342.9,3342.3,1.49621]
[1737027199535,1.64177,3342.9,3342.8,0.59839]
[1737027199738,0.5387,3343.0,3342.7,2.38156966]
[1737027199941,0.5387,3343.0,3342.9,0.59837]
[1737027200135,0.59829,3343.5,3343.4,0.59827]
[1737027200343,0.5387,3343.5,3343.1,2.38156966]
[1737027200839,0.59832,3343.3,3343.2,0.59829]
[1737027201040,0.5387,3343.5,3343.1,2.97989966]
[1737027201041,0.59832,3343.2,3343.1,2.97989966]
[1737027201245,0.59832,3343.2,3343.1,2.38156966]
[1737027201643,0.59834,3343.1,3343.0,3.2078]
[1737027201842,0.59834,3343.1,3343.0,3.80616]
[1737027202144,0.59832,3343.3,3343.2,0.59831]
[1737027202940,0.5387,3343.5,3343.1,2.38156966]
[1737027203139,0.59832,3343.2,3343.1,2.97988966]
[1737027203340,0.5387,3343.5,3343.1,2.38156966]
[1737027203549,0.59828,3343.4,3343.3,0.59829]
[1737027204049,0.59829,3343.4,3343.3,0.59828]
[1737027204551,0.59832,3343.3,3343.2,0.59831]
[1737027204750,0.59829,3343.4,3343.3,0.59828]
[1737027205351,1.49536,3344.3,3343.1,2.90786966]
[1737027205652,0.5022,3344.1,3343.7,2.38156966]
[1737027205848,0.59819,3344.0,3343.7,2.38156966]
[1737027206043,0.5022,3344.1,3343.7,2.38156966]
[1737027206248,0.59821,3343.9,3343.8,0.5982]
[1737027206648,0.59821,3343.8,3343.7,3.50608966]
[1737027206846,0.59821,3343.8,3343.6,1.244]
[1737027206847,0.59823,3343.7,3343.6,1.244]
[1737027207153,1.13063,3343.7,3343.6,1.244]
[1737027208352,0.5324,3343.7,3343.4,3.2078]
[1737027208554,0.4988,3343.6,3343.1,2.89086966]
[1737027208750,0.59832,3343.3,3343.2,1.84231]
[1737027208951,0.5146,3343.5,3343.2,1.244]
[1737027209454,0.5983,3343.3,3343.2,1.84232]
[1737027209655,0.5983,3343.3,3343.2,1.244]
[1737027210853,0.59834,3343.1,3343.0,3.2078]
[1737027211157,0.59834,3343.1,3343.0,5.05016]
[1737027211350,0.59834,3343.1,3343.0,4.4518]
[1737027211546,0.59834,3343.1,3343.0,5.05016]
[1737027211953,0.59834,3343.1,3343.0,4.4518]
[1737027212162,0.59834,3343.1,3343.0,5.05016]
[1737027214762,0.59834,3343.2,3343.1,0.59833]
[1737027214957,0.59834,3343.2,3343.1,2.97989966]
[1737027215559,0.59831,3343.3,3343.2,0.5983]
[1737027215957,0.59832,3343.2,3343.1,2.38156966]
[1737027216361,0.59832,3343.2,3343.1,2.97990966]
[1737027216658,0.59837,3342.9,3342.8,2.38156966]
[1737027216961,1.49581,3343.2,3342.6,1.244]
[1737027216962,0.59841,3342.7,3342.6,1.244]
[1737027217166,0.59843,3342.6,3342.5,3.2078]
[1737027217359,0.59843,3342.6,3342.3,0.59848]
[1737027217360,2.90426966,3342.6,3341.9,3.2078]
[1737027217666,0.59854,3342.0,3341.9,3.2078]
[1737027217874,0.59854,3342.0,3341.5,3.2078]
[1737027217875,0.59861,3341.6,3341.5,3.2078]
[1737027218162,0.59864,3341.4,3341.3,5.91547381]
[1737027218553,3.2078,3341.6,3340.8,0.5344]
[1737027218757,0.59871,3341.1,3340.9,0.59872]
[1737027218968,0.59863,3341.5,3341.1,0.59868]
[1737027219263,0.5987,3341.1,3341.0,2.38156966]
[1737027220069,0.5987,3341.1,3341.0,2.98027966]
[1737027220257,0.5987,3341.1,3341.0,2.38156966]
[1737027220666,0.5987,3341.1,3341.0,2.98027966]
[1737027221157,0.5987,3341.1,3341.0,2.38156966]
[1737027221361,0.5987,3341.1,3341.0,3.62556966]
[1737027221871,0.5987,3341.1,3341.0,4.22427966]
[1737027222468,0.5059,3341.5,3341.0,3.62556966]
[1737027222662,0.59865,3341.4,3341.3,0.59866]
[1737027222862,0.59866,3341.4,3341.0,6.83336966]
[1737027223062,0.59863,3341.5,3341.3,2.38156966]
[1737027223268,5.24584,3342.1,3341.4,0.5189]
[1737027223567,0.59858,3341.8,3341.7,0.59858]
[1737027223865,3.7495,3342.1,3341.4,3.7267]
[1737027224063,0.59855,3342.0,3341.6,2.38156966]
[1737027224266,0.59855,3342.0,3341.9,2.98011966]
[1737027224665,3.7495,3342.1,3341.7,0.59858]
[1737027224873,0.59856,3341.9,3341.8,0.59857]
[1737027225167,0.59854,3342.0,3341.9,0.59854]
[1737027225470,3.2078,3342.1,3341.5,3.62556966]
[1737027225673,0.59849,3342.3,3342.2,0.5985]
[1737027226165,0.537,3342.4,3341.9,3.2078]
[1737027226166,0.537,3342.4,3342.0,0.5126]
[1737027226370,0.537,3342.4,3342.0,1.11113]
[1737027226572,0.59852,3342.1,3342.0,0.5126]
[1737027227163,0.59854,3342.0,3341.9,3.80635]
[1737027227369,0.59853,3342.1,3342.0,0.59853]
[1737027227559,0.59854,3342.0,3341.9,3.80634]
[1737027227762,0.59854,3342.0,3341.9,3.2078]
[1737027227966,0.59854,3342.0,3341.9,3.80635]
[1737027229172,0.59854,3342.0,3341.9,3.2078]
[1737027229375,0.59854,3342.0,3341.9,3.80635]
[1737027230366,0.59853,3342.1,3342.0,0.59853]
[1737027230568,0.59854,3342.0,3341.9,3.80634]
[1737027230767,0.59854,3342.0,3341.9,3.80635]
[1737027231068,0.59854,3342.0,3341.9,3.2078]
[1737027231270,0.59854,3342.0,3341.9,4.4578]
[1737027232270,0.59854,3342.0,3341.9,1.25]
[1737027233172,0.59861,3341.6,3341.5,3.2078]
[1737027234969,0.5986,3341.7,3341.6,0.5986]
[1737027235176,0.59855,3342.0,3341.9,0.59854]
[1737027236372,3.80631,3342.2,3342.1,0.59852]
[1737027236578,3.80631,3342.2,3342.1,1.84852]
[1737027237277,3.80631,3342.2,3342.1,1.25]
[1737027237669,3.80631,3342.2,3342.1,1.84852]
[1737027239171,3.2078,3342.2,3342.1,1.84852]
[1737027239777,0.59844,3342.6,3342.5,0.59843]
[1737027239977,0.59848,3342.4,3342.3,0.59846]
[1737027240477,0.59844,3342.6,3342.1,3.63156966]
[1737027240674,0.59848,3342.4,3342.3,0.59846]
[1737027242884,0.59824,3343.7,3343.6,0.59824]
[1737027243271,0.5116,3343.9,3343.8,0.59821]
[1737027243478,0.5154,3344.0,3343.5,3.63156966]
[1737027243679,0.5982,3343.9,3343.8,0.59821]
[1737027243879,0.5982,3343.9,3343.8,1.25]
[1737027246781,0.5983,3343.3,3343.2,1.249]
[1737027249384,0.59836,3343.0,3342.9,3.80616]
[1737027250086,0.59835,3343.1,3343.0,0.59835]
[1737027250390,1.0658,3343.4,3342.9,3.2078]
[1737027250587,1.6641,3343.4,3343.3,0.5983]
[1737027250891,1.66408,3343.4,3343.3,0.5983]
[1737027251789,1.0658,3343.4,3343.3,0.5983]
[1737027252188,1.66408,3343.4,3343.3,1.8473]
[1737027252385,1.0658,3343.4,3343.3,1.8473]
[1737027253192,3.2078,3344.0,3343.9,0.5982]
[1737027254088,0.54,3344.5,3343.7,3.2078]
[1737027254390,0.59817,3344.1,3344.0,0.59816]
[1737027255483,0.59819,3344.0,3343.9,0.59818]
[1737027255890,0.59817,3344.1,3344.0,0.59817]
[1737027256297,0.59821,3343.8,3343.7,3.2078]
[1737027256886,4.70323,3344.1,3343.6,1.249]
[1737027256887,0.59823,3343.7,3343.6,1.249]
[1737027257093,1.62683,3343.7,3343.6,1.249]
[1737027257793,1.49563,3343.6,3343.3,1.249]
[1737027257993,0.59828,3343.4,3343.3,1.249]
[1737027258293,3.2078,3344.1,3343.3,1.249]
[1737027258494,0.59828,3343.5,3343.4,0.59827]
[1737027260992,1.0684,3343.8,3343.3,1.249]
[1737027261199,0.59828,3343.4,3343.3,1.84729]
[1737027261597,0.59828,3343.5,3343.3,1.249]
[1737027261799,0.59828,3343.5,3343.4,0.59828]
[1737027261999,1.0684,3343.8,3343.3,1.249]
[1737027262200,0.59825,3343.7,3343.6,0.59823]
[1737027262406,1.12853,3343.8,3343.7,0.59823]
[1737027263109,0.5303,3343.8,3343.3,1.249]
[1737027263306,0.59828,3343.5,3343.4,0.59826]
[1737027263799,0.5303,3343.8,3343.5,0.59824]
[1737027263800,0.59827,3343.6,3343.5,0.59824]
[1737027264507,0.59827,3343.6,3343.3,1.249]
[1737027264508,0.59824,3343.7,3343.6,0.59823]
[1737027265709,0.5303,3343.8,3343.5,2.38156966]
[1737027265905,0.59819,3344.0,3343.9,0.59818]
[1737027266111,0.59819,3344.0,3343.6,3.2078]
[1737027266112,0.59822,3343.9,3343.8,0.5982]
[1737027266503,0.59823,3343.8,3343.7,0.59821]
[1737027266703,1.13303,3343.8,3343.7,0.59821]
[1737027267211,0.59823,3343.7,3343.6,3.80604]
[1737027267410,0.59823,3343.7,3343.6,3.2078]
[1737027268310,0.5348,3343.8,3343.4,1.261]
[1737027268510,0.59827,3343.5,3343.4,1.261]
[1737027268705,0.59827,3343.5,3343.4,1.85929]
[1737027268910,0.59827,3343.5,3343.4,1.261]
[1737027269313,0.59827,3343.5,3343.4,1.85929]
[1737027269903,0.5348,3343.8,3343.2,2.90366966]
[1737027270214,1.11329,3343.4,3343.3,1.261]
[1737027271107,1.11329,3343.4,3343.1,3.2078]
[1737027271108,0.5983,3343.3,3343.2,0.59831]
[1737027271307,0.5983,3343.3,3343.1,4.4688]
[1737027271308,0.59832,3343.2,3343.1,5.06713]
[1737027271514,0.59832,3343.2,3343.1,3.80613]
[1737027271812,0.59834,3343.1,3343.0,1.14805]
[1737027272015,0.59834,3343.1,3343.0,1.85935]
[1737027272204,0.5034,3343.3,3342.9,3.64256966]
[1737027272403,0.59836,3343.0,3342.9,3.64256966]
[1737027272604,0.514,3343.2,3342.7,3.2078]
[1737027272808,0.59839,3342.8,3342.7,1.85939]
[1737027273017,1.49585,3343.1,3342.6,2.38156966]
[1737027273213,1.12641,3342.7,3342.6,2.97996966]
[1737027273607,1.12641,3342.7,3342.6,2.38156966]
[1737027273813,0.59843,3342.6,3342.5,1.85944]
[1737027274318,0.528,3342.7,3342.6,0.59843]
[1737027274503,0.528,3342.7,3342.6,2.97999966]
[1737027274714,0.5984,3342.8,3342.6,2.38156966]
[1737027274909,0.59839,3342.9,3342.8,0.59839]
[1737027275309,0.59841,3342.7,3342.6,2.38156966]
[1737027275511,0.59841,3342.7,3342.6,2.97999966]
[1737027276814,0.5984,3342.8,3342.7,0.59839]
[1737027277021,0.59836,3343.0,3342.9,0.59836]
[1737027277607,0.59841,3342.8,3342.7,0.59839]
[1737027278013,0.59841,3342.7,3342.6,4.24097966]
[1737027278607,0.59841,3342.7,3342.6,3.64256966]
[1737027278812,0.59841,3342.7,3342.6,4.24099966]
[1737027279011,0.59841,3342.7,3342.6,3.64256966]
[1737027279220,0.59841,3342.7,3342.1,12.2713]
[1737027279221,0.59852,3342.2,3342.1,0.59851]
[1737027279417,0.59852,3342.2,3342.0,3.64256966]
[1737027279418,0.59852,3342.1,3342.0,4.24109966]
[1737027279727,0.59852,3342.1,3342.0,3.64256966]
[1737027279915,2.00482,3342.6,3342.0,3.64256966]
[1737027280217,0.5087,3342.6,3342.3,5.58936966]
[1737027280416,1.10714,3342.6,3342.5,0.59845]
[1737027280919,0.59845,3342.5,3342.4,0.5081]
[1737027281117,0.59852,3342.2,3342.1,0.5985]
[1737027283920,0.59852,3342.1,3342.0,4.24109966]
[1737027284816,0.59852,3342.1,3342.0,4.24110966]
[1737027285016,0.59852,3342.1,3342.0,3.64256966]
[1737027285425,0.59852,3342.1,3342.0,1.261]
[1737027285827,0.59852,3342.1,3342.0,1.85954]
[1737027286517,0.59851,3342.2,3342.1,0.5985]
[1737027287014,0.59851,3342.2,3342.0,1.261]
[1737027287015,0.59849,3342.3,3342.2,0.59848]
[1737027287524,0.59852,3342.2,3342.1,0.5985]
[1737027287816,0.59852,3342.1,3342.0,4.24109966]
[1737027288018,1.49612,3342.5,3342.0,3.64256966]
[1737027288224,0.5985,3342.3,3342.2,0.59848]
[1737027289924,0.59852,3342.2,3342.1,0.59849]
[1737027290220,0.59849,3342.3,3342.2,0.59847]
[1737027290421,0.59845,3342.5,3342.4,0.59845]
[1737027290815,1.10714,3342.6,3342.5,0.59845]
[1737027292024,0.5087,3342.6,3342.5,0.59845]
[1737027292526,1.10713,3342.6,3342.5,0.59845]
[1737027292822,0.5087,3342.6,3342.4,3.2078]
[1737027293017,0.59847,3342.5,3342.4,0.59845]
[1737027295724,0.59847,3342.5,3342.2,1.0148]
[1737027295725,0.5087,3342.6,3342.2,1.0148]
[1737027295925,0.59852,3342.1,3342.0,3.80633]
[1737027296120,0.59852,3342.1,3342.0,4.4558]
[1737027296515,0.59852,3342.1,3342.0,3.2078]
[1737027299227,0.59862,3341.6,3341.4,2.38156966]
[1737027299429,0.59862,3341.6,3341.5,0.59861]
[1737027299730,0.59863,3341.5,3341.4,2.98019966]
[1737027299928,0.59863,3341.5,3341.4,4.22819966]
[1737027300330,0.5053,3341.9,3341.4,1.249]
[1737027300527,0.5053,3341.9,3341.3,1.59275]
[1737027300726,0.59867,3341.3,3341.2,1.84766]
[1737027300926,0.59868,3341.2,3341.1,2.38156966]
[1737027301126,0.59868,3341.2,3341.1,1.249]
[1737027302427,3.2078,3341.8,3341.1,1.249]
[1737027302623,0.59858,3341.8,3341.7,0.59858]
[1737027303219,0.59854,3342.0,3341.9,0.59854]
[1737027303423,1.09772,3342.1,3342.0,0.59854]
[1737027303629,1.09772,3342.1,3341.9,1.249]
[1737027303630,0.59854,3342.0,3341.9,1.84755]
[1737027304225,1.09773,3342.1,3342.0,0.59854]
[1737027304526,0.5358,3342.3,3342.0,0.36637487]
[1737027304722,1.49576,3343.4,3342.2,3.2078]
[1737027304924,0.59839,3342.9,3342.8,0.59838]
[1737027305120,0.4907,3343.3,3342.8,0.36637487]
[1737027305328,0.59836,3343.0,3342.9,0.36637487]
[1737027305730,0.59832,3343.2,3342.9,0.36607435]
[1737027306023,0.59834,3343.1,3343.0,0.36607435]
[1737027307137,0.59834,3343.1,3342.7,3.2078]
[1737027307330,0.59837,3342.9,3342.8,0.36616083]
[1737027307934,3.80617,3342.9,3342.8,0.36616083]
[1737027308138,0.59855,3342.0,3341.9,1.84654]
[1737027308336,0.59855,3342.0,3341.9,1.6143427]
[1737027308835,0.59855,3342.0,3341.9,0.3663427]
[1737027309629,0.59862,3341.5,3341.4,3.2078]
[1737027309826,0.59862,3341.5,3341.4,0.36665289]
[1737027310233,0.5045,3341.7,3341.4,0.36665289]
[1737027310430,3.2078,3342.1,3341.5,0.36665289]
[1737027310630,0.59858,3341.9,3341.8,0.59856]
[1737027310832,3.7123,3342.1,3341.8,0.36665289]
[1737027311040,0.59855,3342.0,3341.9,0.96519289]
[1737027311430,0.5045,3342.1,3342.0,0.59854]
[1737027311628,1.10302,3342.1,3342.0,0.96502379]
[1737027311835,4.7039,3342.6,3342.2,0.59849]
[1737027311836,3.2078,3342.6,3342.2,0.59849]
[1737027312038,0.59846,3342.4,3342.3,0.36648379]
[1737027313345,0.9996,3342.5,3341.9,1.249]
[1737027313547,0.59852,3342.1,3342.0,0.36652648]
[1737027315140,0.59852,3342.1,3342.0,0.36653977]
[1737027315945,0.59852,3342.1,3342.0,0.96507977]
[1737027316137,0.59848,3342.4,3342.3,0.59847]
[1737027316333,0.9996,3342.5,3342.3,3.34657943]
[1737027316538,2.38156966,3343.5,3342.4,0.36653977]
[1737027316539,4.70361,3343.2,3342.4,0.36653977]
[1737027316741,3.2078,3343.2,3342.8,0.59838]
[1737027316945,0.59838,3343.0,3342.9,0.96458065]
[1737027317249,0.59836,3343.0,3342.9,0.96459065]
[1737027317637,0.59836,3343.0,3342.9,2.21359065]
[1737027317941,3.2078,3343.2,3342.9,3.99679031]
[1737027318148,0.59834,3343.2,3343.1,0.59834]
[1737027318348,0.59834,3343.2,3343.1,0.96456065]
[1737027318540,0.59834,3343.2,3343.1,0.36622065]
[1737027318843,1.49568,3343.5,3343.4,0.59828]
[1737027318844,0.59828,3343.5,3343.4,0.59828]
[1737027319040,0.59828,3343.5,3343.4,0.36622065]
[1737027319444,3.80608,3343.5,3343.4,0.36622065]
[1737027319846,0.59832,3343.2,3343.1,3.2078]
[1737027320142,0.59832,3343.2,3343.1,3.57362784]
[1737027320347,0.59832,3343.2,3343.1,0.36582784]
[1737027322649,0.59832,3343.2,3343.1,0.36566899]
[1737027324648,1.5148,3343.4,3342.7,1.7493]
[1737027324649,0.59839,3342.8,3342.7,1.7493]
[1737027324850,0.59839,3342.8,3342.7,2.71331925]
[1737027325146,0.59839,3342.8,3342.7,0.36560925]
[1737027326452,0.59839,3342.8,3342.5,3.2078]
[1737027326453,6.02021762,3343.1,3342.5,3.2078]
[1737027326752,0.5985,3342.2,3342.1,3.2078]
[1737027327052,0.5985,3342.2,3342.1,3.57363745]
[1737027327943,0.5985,3342.2,3342.1,0.36583745]
[1737027328340,0.59854,3342.0,3341.9,1.255]
[1737027328543,0.59854,3342.0,3341.9,1.6209089]
[1737027330442,0.59854,3342.0,3341.9,0.3659089]
[1737027332045,2.03302,3342.5,3341.9,0.9644489]
[1737027332046,0.59846,3342.4,3341.9,0.9644489]
[1737027332245,0.59852,3342.2,3342.1,0.59851]
[1737027332440,0.59852,3342.2,3342.1,0.9644189]
[1737027332849,0.59852,3342.2,3342.1,0.3659089]
[1737027333656,0.59857,3341.8,3341.7,1.255]
[1737027333848,3.80637,3341.8,3341.7,0.36658331]
[1737027334246,3.80637,3341.8,3341.1,5.60088]
[1737027334452,1.49653,3341.6,3341.2,0.36656893]
[1737027334660,0.59864,3341.4,3341.3,0.36656893]
[1737027335049,1.49653,3341.6,3341.3,0.36656893]
[1737027335250,0.59863,3341.5,3341.4,0.36656893]
[1737027335752,0.518,3341.7,3341.4,0.36643422]
[1737027335952,0.59861,3341.6,3341.5,0.36643422]
[1737027336354,0.59868,3341.2,3341.1,3.2078]
[1737027336653,0.59868,3341.2,3341.1,3.57413555]
[1737027338256,0.59868,3341.2,3340.4,1.0119]
[1737027338257,0.5988,3340.5,3340.4,3.7211]
[1737027338446,0.5988,3340.5,3340.4,4.08733656]
[1737027338653,0.5988,3340.5,3340.4,3.57403656]
[1737027339251,0.5988,3340.5,3340.4,0.36623656]
[1737027339456,0.59888,3340.1,3340.0,4.9771]
[1737027339759,0.59888,3340.1,3340.0,5.34332604]
[1737027340154,0.59888,3340.1,3340.0,3.57402604]
[1737027340352,0.59888,3340.1,3338.9,4.67871]
[1737027340353,0.59898,3339.5,3339.4,6.70487123]
[1737027340554,0.59898,3339.5,3339.4,8.32690027]
[1737027340757,0.59898,3339.6,3339.5,0.59897]
[1737027340952,0.59897,3339.6,3339.5,0.36602904]
[1737027341356,2.57886,3340.0,3339.4,6.70486123]
[1737027341554,0.59897,3339.6,3339.5,0.96471878]
[1737027341760,0.59897,3339.6,3339.5,0.36573878]
[1737027342256,2.57888,3340.0,3339.4,7.36187123]
[1737027342462,0.59898,3339.5,3339.4,7.96086123]
[1737027342759,0.59898,3339.5,3339.4,5.94155207]
[1737027342962,0.59898,3339.5,3339.4,4.4638]
[1737027343154,0.59898,3339.5,3339.4,1.256]
[1737027344058,0.59891,3340.0,3339.9,0.59891]
[1737027344363,4.70486,3340.5,3339.8,5.59257123]
[1737027344665,0.5989,3340.0,3339.9,0.59891]
[1737027344957,0.5989,3340.0,3339.8,5.59257123]
[1737027345157,0.59891,3339.9,3339.8,3.2078]
[1737027345867,1.0288,3340.2,3339.4,4.4638]
[1737027346166,0.59898,3339.5,3339.4,5.06279]
[1737027346465,0.59898,3339.5,3339.4,4.4638]
[1737027347060,0.59898,3339.5,3339.4,5.0628]
[1737027347961,1.49722,3340.1,3339.4,4.4638]
[1737027348155,1.0288,3340.2,3339.4,4.4638]
[1737027348467,0.59891,3339.9,3339.8,3.2078]
[1737027350464,0.599,3339.4,3339.3,1.85001]
[1737027350664,0.599,3339.4,3339.3,1.251]
[1737027351060,0.599,3339.4,3339.3,1.85002]
[1737027351263,0.599,3339.4,3339.3,1.251]
[1737027351757,0.59902,3339.3,3339.2,3.2078]
[1737027351963,1.49729,3339.9,3339.2,4.4588]
[1737027352166,0.599,3339.5,3339.4,0.59899]
[1737027353170,0.59901,3339.4,3339.3,0.599]
[1737027353365,1.49729,3339.9,3339.2,4.4588]
[1737027353670,3.2078,3340.0,3339.2,4.4588]
[1737027353969,0.59902,3339.4,3339.3,0.599]
[1737027355371,0.59902,3339.4,3339.3,0.9643475]
[1737027355762,0.59902,3339.3,3339.2,3.80683]
[1737027355972,0.59905,3339.1,3339.0,1.251]
[1737027356162,0.59905,3339.1,3339.0,1.61639441]
[1737027356870,1.0464,3339.5,3339.2,0.59902]
[1737027357073,0.59902,3339.3,3339.2,0.59902]
[1737027357266,0.59902,3339.3,3339.2,0.36554002]
[1737027357468,0.59905,3339.2,3339.1,0.59905]
[1737027357668,0.59905,3339.2,3339.1,0.36566718]
[1737027357866,0.59905,3339.2,3339.1,0.96471718]
[1737027358073,0.59905,3339.2,3339.1,0.59905]
[1737027358372,0.59905,3339.2,3339.1,0.96473733]
[1737027358771,0.59898,3339.6,3339.5,0.59897]
[1737027359273,1.49732,3339.9,3339.1,7.52382955]
[1737027359274,0.5468,3339.9,3339.1,7.52382955]
[1737027359468,0.59898,3339.6,3339.5,0.59897]
[1737027359863,0.5468,3339.9,3339.1,6.02621955]
[1737027360066,0.599,3339.5,3339.4,0.59899]
[1737027360380,0.599,3339.5,3339.4,0.96486807]
[1737027360970,1.49717,3340.2,3339.4,0.3660748]
[1737027361176,0.59895,3339.7,3339.6,3.2078]
[1737027361372,3.2078,3340.0,3339.0,3.7375]
[1737027361670,0.59905,3339.1,3339.0,3.7375]
[1737027361878,0.59905,3339.1,3339.0,4.70292696]
[1737027362375,0.59905,3339.1,3339.0,0.36635696]
[1737027362768,1.49725,3340.0,3339.5,0.59896]
[1737027362970,0.59896,3339.7,3339.6,0.59894]
[1737027363166,1.49711,3340.3,3339.4,3.2078]
[1737027363167,1.49729,3339.9,3339.4,3.2078]
[1737027363371,1.49729,3339.9,3339.5,0.36650184]
[1737027363372,0.59897,3339.6,3339.5,0.36650184]
[1737027363774,3.80677,3339.6,3339.5,0.36650184]
[1737027363973,0.59904,3339.2,3339.1,1.251]
[1737027364171,0.59904,3339.2,3339.1,1.61793936]
[1737027364373,0.59904,3339.2,3339.1,0.36693936]
[1737027365475,3.2078,3339.6,3339.1,0.36732411]
[1737027365678,3.2078,3339.6,3338.8,3.2078]
[1737027365679,0.59902,3339.4,3339.3,0.59899]
[1737027365869,0.59902,3339.4,3339.3,0.36732411]
[1737027366072,0.59902,3339.4,3339.3,0.96634411]
[1737027366568,0.59899,3339.5,3339.4,0.59898]
[1737027366773,0.59899,3339.5,3339.4,1.50650411]
[1737027367174,0.59899,3339.5,3339.4,0.90752411]
[1737027367479,0.59899,3339.5,3339.4,0.36753228]
[1737027368375,3.2078,3340.1,3339.4,2.75347176]
[1737027368583,3.2078,3340.1,3339.9,0.59889]
[1737027368778,0.59892,3340.0,3339.9,0.59889]